[Event "MČR v bleskovém šachu družstev 2019"]
[Site "Teplice, Czech Republic"]
[Date "2019.09.14"]
[Round "14.13"]
[White "Bernasek, Jan"]
[Black "Vojta, Tomas"]
[Result "1-0"]
[TimeControl "3 mim. + 2 s"]
[WhiteTitle "GM"]
[BlackTitle "FM"]
[WhiteFideId "311995"]
[BlackFideId "308781"]
[WhiteElo "2526"]
[BlackElo "2353"]

1. b3 {[%clk 00:03:03]} d5 {[%clk 00:02:59]} {[%emt 00:00:06]} 2. Bb2 {[%clk
00:03:04]} Nf6 {[%clk 00:03:00]} {[%emt 00:00:01]} 3. Nf3 {[%clk 00:03:06]} c5
{[%clk 00:02:58]} {[%emt 00:00:04]} 4. e3 {[%clk 00:03:06]} {[%emt 00:00:01]}
Nc6 {[%clk 00:02:58]} {[%emt 00:00:02]} 5. d4 {[%clk 00:03:06]} {[%emt
00:00:02]} cxd4 {[%clk 00:02:56]} {[%emt 00:00:04]} 6. Nxd4 {[%clk 00:03:03]}
{[%emt 00:00:05]} Bd7 {[%clk 00:02:53]} {[%emt 00:00:05]} 7. Be2 {[%clk
00:03:03]} {[%emt 00:00:01]} Rc8 {[%clk 00:02:50]} {[%emt 00:00:06]} 8. O-O
{[%clk 00:03:03]} {[%emt 00:00:02]} Nxd4 {[%clk 00:02:48]} {[%emt 00:00:04]} 9.
Bxd4 {[%clk 00:03:03]} {[%emt 00:00:02]} e6 {[%clk 00:02:44]} {[%emt 00:00:06]}
10. c4 {[%clk 00:02:54]} {[%emt 00:00:11]} Bc6 {[%clk 00:02:34]} {[%emt
00:00:12]} 11. Nc3 {[%clk 00:02:52]} {[%emt 00:00:03]} Be7 {[%clk 00:02:22]}
{[%emt 00:00:14]} 12. cxd5 {[%clk 00:02:32]} {[%emt 00:00:22]} Nxd5 {[%clk
00:02:23]} {[%emt 00:00:02]} 13. Nxd5 {[%clk 00:02:19]} {[%emt 00:00:15]} Bxd5
{[%clk 00:02:16]} {[%emt 00:00:09]} 14. Bb5+ {[%clk 00:01:57]} {[%emt
00:00:24]} Kf8 {[%clk 00:02:12]} {[%emt 00:00:06]} 15. Qg4 {[%clk 00:01:55]}
{[%emt 00:00:03]} Bf6 {[%clk 00:02:03]} {[%emt 00:00:12]} 16. Rad1 {[%clk
00:01:56]} {[%emt 00:00:01]} h5 {[%clk 00:01:42]} {[%emt 00:00:22]} 17. Qf4
{[%clk 00:01:27]} {[%emt 00:00:32]} Bg5 {[%clk 00:01:31]} {[%emt 00:00:12]} 18.
Qg3 {[%clk 00:01:20]} {[%emt 00:00:09]} h4 {[%clk 00:01:26]} {[%emt 00:00:07]}
19. Qg4 {[%clk 00:01:19]} {[%emt 00:00:03]} h3 {[%clk 00:01:22]} {[%emt
00:00:06]} 20. e4 {[%clk 00:01:15]} {[%emt 00:00:06]} hxg2 {[%emt 00:00:06]} 21.
Rfe1 Qc7 {[%clk 00:00:50]} {[%emt 00:00:31]} 22. Qxg2 {[%clk 00:00:57]} {[%emt
00:00:21]} Bc6 {[%clk 00:00:47]} {[%emt 00:00:05]} 23. Bxc6 {[%clk 00:00:56]}
{[%emt 00:00:04]} bxc6 {[%clk 00:00:48]} 24. Qxg5 {[%clk 00:00:44]} {[%emt
00:00:13]} Qxh2+ {[%clk 00:00:49]} {[%emt 00:00:02]} 25. Kf1 {[%clk 00:00:46]}
Qh1+ {[%clk 00:00:47]} {[%emt 00:00:05]} 26. Qg1 {[%clk 00:00:46]} {[%emt
00:00:01]} Qh6 {[%clk 00:00:43]} {[%emt 00:00:06]} 27. Be3 {[%clk 00:00:34]}
{[%emt 00:00:15]} Qh5 {[%clk 00:00:34]} {[%emt 00:00:10]} 28. Rd7 {[%clk
00:00:25]} {[%emt 00:00:11]} Qf3 {[%clk 00:00:33]} {[%emt 00:00:03]} 29. Bc5+
{[%clk 00:00:09]} {[%emt 00:00:19]} Kg8 {[%clk 00:00:33]} {[%emt 00:00:01]} 30.
Re3 {[%clk 00:00:08]} {[%emt 00:00:03]} Qf6 {[%clk 00:00:28]} {[%emt 00:00:07]}
31. Bd4 {[%clk 00:00:08]} {[%emt 00:00:01]} e5 {[%clk 00:00:29]} {[%emt
00:00:02]} 32. Bc3 {[%clk 00:00:08]} {[%emt 00:00:02]} Rh4 {[%clk 00:00:25]}
{[%emt 00:00:06]} 33. Ke2 {[%clk 00:00:09]} {[%emt 00:00:01]} Rf4 {[%clk
00:00:25]} {[%emt 00:00:02]} 34. Qg3 {[%clk 00:00:10]} {[%emt 00:00:01]} c5
{[%clk 00:00:22]} {[%emt 00:00:05]} 35. Rd5 {[%clk 00:00:09]} {[%emt 00:00:03]}
Qa6+ {[%clk 00:00:21]} {[%emt 00:00:02]} 36. Ke1 {[%clk 00:00:09]} {[%emt
00:00:02]} Qxa2 {[%clk 00:00:21]} {[%emt 00:00:03]} 37. Bxe5 {[%clk 00:00:08]}
{[%emt 00:00:03]} Qa5+ {[%clk 00:00:10]} {[%emt 00:00:12]} 38. Rd2 {[%clk
00:00:08]} {[%emt 00:00:03]} Qa1+ {[%clk 00:00:03]} {[%emt 00:00:09]} 39. Bxa1
{[%clk 00:00:08]} {[%emt 00:00:02]} 1-0

[Event "MČR v bleskovém šachu družstev 2019"]
[Site "Teplice, Czech Republic"]
[Date "2019.09.14"]
[Round "14.15"]
[White "Vrbata, Zbynek"]
[Black "Svanda, Ondrej"]
[Result "1/2-1/2"]
[TimeControl "3 mim. + 2 s"]
[WhiteTitle "FM"]
[BlackTitle "FM"]
[WhiteFideId "301256"]
[BlackFideId "359670"]
[WhiteElo "2324"]
[BlackElo "1924"]

1. d4 {[%emt 00:13:28]} Nf6 2. c4 e6 {[%emt 00:00:01]} 3. Nc3 {[%emt 00:00:02]}
Bb4 4. Nf3 {[%emt 00:00:01]} b6 {[%emt 00:00:06]} 5. g3 {[%emt 00:00:02]} Bb7
{[%emt 00:00:06]} 6. Bg2 {[%emt 00:00:01]} c5 {[%emt 00:00:14]} 7. O-O {[%emt
00:00:36]} cxd4 {[%emt 00:00:02]} 8. Qxd4 {[%emt 00:00:04]} O-O {[%emt
00:00:12]} 9. Rd1 {[%emt 00:00:10]} Be7 {[%emt 00:00:32]} 10. e4 {[%emt
00:00:08]} d6 {[%emt 00:00:02]} 11. Bg5 {[%emt 00:00:06]} Nbd7 {[%emt
00:00:03]} 12. Rac1 {[%emt 00:00:06]} a6 {[%emt 00:00:03]} 13. h3 {[%emt
00:00:09]} h6 {[%emt 00:00:13]} 14. Bxf6 {[%emt 00:00:18]} Nxf6 {[%emt
00:00:08]} 15. Qe3 {[%emt 00:00:14]} Qc7 {[%emt 00:00:05]} 16. b3 Rac8 {[%emt
00:00:26]} 17. Nd4 {[%emt 00:00:04]} Nd7 {[%emt 00:00:13]} 18. f4 {[%emt
00:00:01]} Rfe8 {[%emt 00:00:06]} 19. Kh1 {[%emt 00:00:02]} Bf8 {[%emt
00:00:06]} 20. Rf1 {[%emt 00:00:17]} Qb8 {[%emt 00:00:14]} 21. f5 {[%emt
00:00:07]} exf5 {[%emt 00:00:13]} 22. Nxf5 {[%emt 00:00:03]} Nc5 {[%emt
00:00:11]} 23. Qd4 {[%emt 00:00:09]} Ne6 {[%emt 00:00:20]} 24. Qd2 {[%emt
00:00:04]} Nc5 {[%emt 00:00:05]} 25. Rce1 {[%emt 00:00:02]} Qa8 {[%emt
00:00:04]} 26. Rf4 {[%emt 00:00:02]} g6 {[%emt 00:00:03]} 27. Rg4 {[%emt
00:00:10]} Kh7 {[%emt 00:00:02]} 28. Nxd6 {[%emt 00:00:14]} Bxd6 {[%emt
00:00:04]} 29. Qxd6 {[%emt 00:00:02]} Rc6 {[%emt 00:00:08]} 30. Qf4 {[%emt
00:00:04]} Re7 {[%emt 00:00:04]} 31. Rh4 {[%emt 00:00:05]} g5 {[%emt 00:00:02]}
32. Qxg5 {[%emt 00:00:02]} Rg6 {[%emt 00:00:02]} 33. Qf5 {[%emt 00:00:03]} Bc8
{[%emt 00:00:04]} 34. Qf4 {[%emt 00:00:04]} Nd3 {[%emt 00:00:02]} 35. Qd2
{[%emt 00:00:08]} Nxe1 {[%emt 00:00:01]} 36. Qxe1 {[%emt 00:00:01]} Bb7 {[%emt
00:00:02]} 37. Qf2 {[%emt 00:00:08]} Qd8 {[%emt 00:00:03]} 38. Rf4 {[%emt
00:00:03]} Rg7 {[%emt 00:00:06]} 39. Nd5 Bxd5 {[%emt 00:00:01]} 40. cxd5 Qd6
{[%emt 00:00:02]} 41. Kh2 {[%emt 00:00:04]} Qc5 {[%emt 00:00:02]} 42. Qxc5 bxc5
43. d6 Rd7 44. e5 Kg8 45. Bc6 Rd8 {[%emt 00:00:01]} 46. Ra4 Rg5 {[%emt
00:00:02]} 47. Re4 {[%emt 00:00:02]} Rf5 {[%emt 00:00:04]} 48. Kg2 h5 {[%emt
00:00:03]} 49. g4 hxg4 50. hxg4 Rg5 51. Kg3 {[%emt 00:00:02]} Kg7 52. Kf4
{[%emt 00:00:01]} Rg6 {[%emt 00:00:04]} 53. g5 Rh8 {[%emt 00:00:07]} 54. Kf5
{[%emt 00:00:07]} Re6 {[%emt 00:00:03]} 55. Bd5 {[%emt 00:00:02]} Ree8 {[%emt
00:00:02]} 56. Rg4 {[%emt 00:00:01]} Rh5 {[%emt 00:00:01]} 57. Kf4 Rf8 {[%emt
00:00:04]} 58. Kf5 {[%emt 00:00:03]} Re8 {[%emt 00:00:01]} 59. Ra4 {[%emt
00:00:01]} Rxg5+ {[%emt 00:00:04]} 60. Kxg5 {[%emt 00:00:01]} Rxe5+ 61. Kf4
{[%emt 00:00:01]} Rxd5 62. Rxa6 Kf6 {[%emt 00:00:01]} 63. Ke4 Rd1 {[%emt
00:00:02]} 64. Rc6 {[%emt 00:00:05]} Ke6 65. Rxc5 {[%emt 00:00:02]} f5+ {[%emt
00:00:04]} 66. Ke3 {[%emt 00:00:01]} Rxd6 {[%emt 00:00:01]} 67. Rc2 {[%emt
00:00:02]} Ke5 {[%emt 00:00:03]} 68. Rc5+ Ke6 69. Ra5 Rc6 {[%emt 00:00:02]} 70.
Kd4 {[%emt 00:00:04]} Rc2 {[%emt 00:00:06]} 71. Re5+ {[%emt 00:00:02]} Kf6
{[%emt 00:00:01]} 72. Ra5 Kg5 {[%emt 00:00:02]} 73. b4 {[%emt 00:00:02]} Kg4
{[%emt 00:00:02]} 74. Ra8 {[%emt 00:00:02]} Rb2 {[%emt 00:00:01]} 75. Kc3
{[%emt 00:00:03]} Rb1 {[%emt 00:00:02]} 76. a4 {[%emt 00:00:01]} f4 77. b5 f3
78. Rg8+ Kh3 {[%emt 00:00:02]} 79. Kc4 {[%emt 00:00:03]} f2 {[%emt 00:00:01]}
80. Rf8 Kg2 {[%emt 00:00:10]} 81. a5 {[%emt 00:00:01]} f1=Q+ {[%emt 00:00:03]}
82. Rxf1 Kxf1 83. a6 Ra1 {[%emt 00:00:05]} 84. Kc5 {[%emt 00:00:02]} Ke2 {[%emt
00:00:02]} 85. Kb6 {[%emt 00:00:01]} Kd3 86. a7 {[%emt 00:00:01]} Kc4 87. Kb7
{[%emt 00:00:01]} Kxb5 {[%emt 00:00:02]} 88. a8=Q Rxa8 1/2-1/2

[Event "MČR v bleskovém šachu družstev 2019"]
[Site "Teplice, Czech Republic"]
[Date "2019.09.14"]
[Round "14.16"]
[White "Vavra, Michal"]
[Black "Kuba, Jindrich"]
[Result "0-1"]
[TimeControl "3 mim. + 2 s"]
[BlackTitle "FM"]
[WhiteFideId "306398"]
[BlackFideId "318248"]
[WhiteElo "2026"]
[BlackElo "2223"]

1. Nf3 {[%clk 00:03:02]} Nf6 {[%clk 00:03:03]} {[%emt 00:00:02]} 2. c4 {[%clk
00:03:01]} {[%emt 00:00:02]} g6 {[%clk 00:03:04]} {[%emt 00:00:02]} 3. g3
{[%clk 00:03:01]} {[%emt 00:00:02]} Bg7 {[%clk 00:03:05]} 4. Bg2 {[%clk
00:03:02]} {[%emt 00:00:01]} c6 {[%clk 00:03:06]} 5. O-O {[%clk 00:03:02]}
{[%emt 00:00:02]} O-O {[%clk 00:03:07]} {[%emt 00:00:02]} 6. d4 {[%clk
00:03:02]} d5 {[%clk 00:03:07]} {[%emt 00:00:03]} 7. Nc3 {[%clk 00:03:00]}
{[%emt 00:00:03]} Nbd7 {[%clk 00:03:02]} {[%emt 00:00:07]} 8. cxd5 {[%clk
00:02:53]} {[%emt 00:00:09]} cxd5 {[%clk 00:03:03]} {[%emt 00:00:02]} 9. Bf4
{[%clk 00:02:52]} {[%emt 00:00:02]} a6 {[%clk 00:02:58]} {[%emt 00:00:08]} 10.
Rc1 {[%clk 00:02:46]} {[%emt 00:00:06]} b5 {[%clk 00:02:57]} {[%emt 00:00:04]}
11. Ne5 {[%clk 00:02:44]} {[%emt 00:00:03]} Bb7 {[%clk 00:02:55]} {[%emt
00:00:05]} 12. Qb3 {[%clk 00:02:31]} {[%emt 00:00:14]} e6 {[%clk 00:02:51]}
{[%emt 00:00:05]} 13. a4 {[%emt 00:00:19]} Nxe5 {[%clk 00:02:37]} {[%emt
00:00:15]} 14. Bxe5 {[%clk 00:02:12]} {[%emt 00:00:06]} Qb6 {[%clk 00:02:19]}
{[%emt 00:00:20]} 15. axb5 {[%clk 00:02:05]} {[%emt 00:00:08]} axb5 {[%clk
00:02:20]} {[%emt 00:00:02]} 16. Qxb5 {[%clk 00:01:49]} {[%emt 00:00:17]} Qxb5
{[%clk 00:02:01]} {[%emt 00:00:22]} 17. Nxb5 {[%clk 00:01:50]} {[%emt
00:00:01]} Ra2 {[%clk 00:02:01]} 18. Rc2 {[%clk 00:01:27]} {[%emt 00:00:24]}
Ra5 {[%clk 00:01:33]} {[%emt 00:00:30]} 19. Nd6 {[%clk 00:01:14]} {[%emt
00:00:16]} Ba8 {[%clk 00:00:42]} {[%emt 00:00:54]} 20. Rfc1 {[%clk 00:01:12]}
{[%emt 00:00:04]} Nd7 {[%clk 00:00:37]} {[%emt 00:00:08]} 21. Bxg7 {[%clk
00:01:10]} {[%emt 00:00:03]} Kxg7 {[%clk 00:00:37]} {[%emt 00:00:02]} 22. Rc7
{[%clk 00:01:06]} {[%emt 00:00:05]} Rd8 {[%clk 00:00:31]} {[%emt 00:00:09]} 23.
b4 {[%clk 00:01:04]} {[%emt 00:00:04]} Ra6 {[%clk 00:00:32]} {[%emt 00:00:02]}
24. Nc8 {[%clk 00:00:59]} {[%emt 00:00:07]} Ra4 {[%clk 00:00:21]} {[%emt
00:00:13]} 25. b5 {[%clk 00:00:57]} {[%emt 00:00:04]} Rxd4 {[%clk 00:00:20]}
{[%emt 00:00:03]} 26. b6 {[%clk 00:00:57]} {[%emt 00:00:02]} Rb4 {[%clk
00:00:21]} {[%emt 00:00:01]} 27. b7 {[%clk 00:00:18]} {[%emt 00:00:41]} Rxb7
{[%clk 00:00:19]} {[%emt 00:00:04]} 28. Nd6 {[%clk 00:00:17]} {[%emt 00:00:03]}
Rb6 {[%clk 00:00:17]} {[%emt 00:00:04]} 29. Nc8 {[%clk 00:00:17]} {[%emt
00:00:03]} Ra6 {[%clk 00:00:13]} {[%emt 00:00:06]} 30. Ra7 {[%clk 00:00:14]}
{[%emt 00:00:04]} Rxa7 {[%clk 00:00:14]} {[%emt 00:00:02]} 31. Nxa7 {[%clk
00:00:15]} Nb6 {[%clk 00:00:14]} {[%emt 00:00:02]} 32. Rc7 {[%clk 00:00:14]}
{[%emt 00:00:03]} d4 {[%clk 00:00:11]} {[%emt 00:00:05]} 33. Nb5 {[%clk
00:00:14]} {[%emt 00:00:02]} Bxg2 34. Kxg2 {[%clk 00:00:15]} d3 {[%clk
00:00:13]} {[%emt 00:00:01]} 35. exd3 {[%clk 00:00:15]} {[%emt 00:00:02]} Rxd3
{[%clk 00:00:13]} 36. Rc6 {[%clk 00:00:14]} {[%emt 00:00:03]} Nd7 {[%clk
00:00:13]} {[%emt 00:00:02]} 37. Rc7 {[%clk 00:00:12]} {[%emt 00:00:03]} Nf6
{[%clk 00:00:13]} {[%emt 00:00:02]} 38. Na7 {[%clk 00:00:11]} {[%emt 00:00:04]}
Rd7 {[%clk 00:00:14]} 39. Rxd7 {[%clk 00:00:11]} {[%emt 00:00:02]} Nxd7 {[%clk
00:00:15]} 40. Nc6 {[%clk 00:00:12]} Kf6 {[%clk 00:00:16]} {[%emt 00:00:02]} 41.
Kf3 {[%clk 00:00:11]} {[%emt 00:00:02]} Ne5+ {[%clk 00:00:17]} {[%emt
00:00:01]} 42. Nxe5 {[%clk 00:00:11]} {[%emt 00:00:02]} Kxe5 {[%clk 00:00:18]}
43. Ke3 {[%clk 00:00:12]} h5 {[%clk 00:00:20]} {[%emt 00:00:01]} 44. h3 {[%clk
00:00:13]} {[%emt 00:00:02]} Kf5 {[%clk 00:00:20]} {[%emt 00:00:01]} 45. Kf3
{[%clk 00:00:13]} {[%emt 00:00:02]} e5 {[%clk 00:00:19]} {[%emt 00:00:03]} 46.
Ke3 {[%clk 00:00:15]} {[%emt 00:00:01]} Ke6 {[%clk 00:00:20]} 47. Ke4 {[%clk
00:00:16]} f5+ {[%clk 00:00:22]} 48. Ke3 {[%clk 00:00:17]} Kd5 {[%clk
00:00:23]} 49. Kd3 {[%clk 00:00:19]} {[%emt 00:00:01]} f4 {[%clk 00:00:21]}
{[%emt 00:00:03]} 50. Ke2 {[%clk 00:00:17]} {[%emt 00:00:04]} g5 {[%clk
00:00:21]} {[%emt 00:00:03]} 51. Kf3 {[%clk 00:00:17]} {[%emt 00:00:02]} e4+
{[%clk 00:00:22]} 52. Ke2 {[%clk 00:00:16]} {[%emt 00:00:03]} Kd4 {[%clk
00:00:18]} {[%emt 00:00:06]} 53. h4 {[%clk 00:00:07]} {[%emt 00:00:11]} f3+
{[%clk 00:00:13]} {[%emt 00:00:06]} 54. Kd2 {[%clk 00:00:08]} {[%emt 00:00:01]}
gxh4 {[%clk 00:00:14]} {[%emt 00:00:02]} 55. gxh4 {[%clk 00:00:09]} Ke5 {[%clk
00:00:15]} 56. Ke3 {[%clk 00:00:10]} Kf5 {[%clk 00:00:16]} {[%emt 00:00:02]} 57.
Kd4 {[%clk 00:00:11]} Kf4 {[%clk 00:00:17]} 58. Kd5 {[%clk 00:00:12]} e3 {[%clk
00:00:18]} {[%emt 00:00:03]} 59. fxe3+ {[%clk 00:00:12]} {[%emt 00:00:02]} Kxe3
{[%emt 00:00:02]} 0-1

[Event "MČR v bleskovém šachu družstev 2019"]
[Site "Teplice, Czech Republic"]
[Date "2019.09.14"]
[Round "14.17"]
[White "Sykora, Ondrej"]
[Black "Rubes, Jan"]
[Result "1-0"]
[TimeControl "3 mim. + 2 s"]
[BlackTitle "FM"]
[BlackFideId "338176"]
[WhiteElo "2122"]
[BlackElo "2316"]

1. e4 {[%clk 00:03:03]} c5 {[%clk 00:03:03]} {[%emt 00:00:02]} 2. Nf3 {[%clk
00:03:04]} Nc6 {[%clk 00:03:04]} {[%emt 00:00:01]} 3. d4 {[%clk 00:03:02]}
{[%emt 00:00:04]} cxd4 {[%clk 00:03:05]} {[%emt 00:00:02]} 4. Nxd4 {[%clk
00:03:03]} e5 {[%clk 00:03:05]} {[%emt 00:00:02]} 5. Nb3 {[%clk 00:03:04]}
{[%emt 00:00:01]} Nf6 {[%clk 00:03:05]} {[%emt 00:00:02]} 6. N1d2 {[%clk
00:02:53]} {[%emt 00:00:13]} d5 {[%clk 00:02:57]} {[%emt 00:00:10]} 7. exd5
{[%clk 00:02:49]} {[%emt 00:00:07]} Nxd5 {[%clk 00:02:57]} {[%emt 00:00:01]} 8.
Ne4 {[%clk 00:02:40]} {[%emt 00:00:11]} Bf5 {[%clk 00:02:33]} {[%emt 00:00:26]}
9. Ng3 {[%clk 00:02:40]} {[%emt 00:00:02]} Be6 {[%clk 00:02:25]} {[%emt
00:00:11]} 10. Be2 {[%clk 00:02:19]} {[%emt 00:00:22]} Be7 {[%clk 00:02:24]}
{[%emt 00:00:02]} 11. O-O {[%clk 00:02:20]} {[%emt 00:00:02]} O-O {[%clk
00:02:25]} {[%emt 00:00:02]} 12. Kh1 {[%clk 00:02:12]} {[%emt 00:00:09]} f5
{[%clk 00:02:14]} {[%emt 00:00:13]} 13. c3 {[%clk 00:01:58]} {[%emt 00:00:16]}
Qc7 {[%clk 00:02:05]} {[%emt 00:00:10]} 14. f3 {[%clk 00:01:59]} {[%emt
00:00:02]} Rad8 {[%clk 00:02:05]} {[%emt 00:00:03]} 15. Qe1 {[%clk 00:01:56]}
{[%emt 00:00:04]} Bh4 {[%clk 00:01:57]} {[%emt 00:00:10]} 16. Qd2 {[%clk
00:01:37]} {[%emt 00:00:22]} Ndb4 {[%clk 00:01:47]} {[%emt 00:00:12]} 17. Nd4
{[%clk 00:01:16]} {[%emt 00:00:22]} Nxd4 {[%clk 00:01:39]} {[%emt 00:00:10]} 18.
cxd4 {[%clk 00:01:08]} {[%emt 00:00:10]} Rxd4 {[%clk 00:01:40]} {[%emt
00:00:02]} 19. Qc3 {[%clk 00:01:02]} {[%emt 00:00:07]} Qf7 {[%clk 00:01:12]}
{[%emt 00:00:30]} 20. Be3 {[%clk 00:00:56]} {[%emt 00:00:07]} Nd5 {[%clk
00:01:13]} {[%emt 00:00:01]} 21. Bxd4 {[%clk 00:00:52]} {[%emt 00:00:06]} Nxc3
{[%clk 00:01:14]} {[%emt 00:00:02]} 22. Bxc3 {[%clk 00:00:54]} Bxg3 {[%clk
00:00:58]} {[%emt 00:00:19]} 23. hxg3 {[%clk 00:00:54]} {[%emt 00:00:01]} Bc4
{[%clk 00:00:59]} {[%emt 00:00:01]} 24. Bxc4 {[%clk 00:00:49]} {[%emt
00:00:08]} Qxc4 {[%clk 00:00:59]} {[%emt 00:00:01]} 25. Bxe5 {[%clk 00:00:49]}
{[%emt 00:00:02]} Re8 {[%clk 00:00:59]} {[%emt 00:00:02]} 26. f4 {[%clk
00:00:44]} {[%emt 00:00:07]} Kf7 {[%clk 00:00:36]} {[%emt 00:00:25]} 27. Rac1
{[%clk 00:00:43]} {[%emt 00:00:03]} Qxa2 {[%clk 00:00:37]} {[%emt 00:00:02]} 28.
Rc7+ {[%clk 00:00:44]} {[%emt 00:00:01]} Re7 {[%clk 00:00:38]} 29. Rfc1 {[%clk
00:00:43]} {[%emt 00:00:03]} b5 {[%clk 00:00:26]} {[%emt 00:00:14]} 30. Rxe7+
Kxe7 {[%clk 00:00:28]} 31. Rc7+ {[%clk 00:00:43]} Ke6 {[%clk 00:00:29]} 32.
Rxg7 {[%clk 00:00:39]} {[%emt 00:00:04]} a5 {[%emt 00:00:04]} 33. Rxh7 {[%clk
00:00:40]} b4 {[%clk 00:00:29]} {[%emt 00:00:02]} 34. Rh6+ {[%clk 00:00:34]}
{[%emt 00:00:08]} Kd5 {[%clk 00:00:30]} {[%emt 00:00:01]} 35. Rh5 {[%clk
00:00:30]} {[%emt 00:00:06]} Ke4 {[%clk 00:00:31]} {[%emt 00:00:01]} 36. Rh8
{[%clk 00:00:16]} {[%emt 00:00:16]} a4 {[%clk 00:00:32]} {[%emt 00:00:02]} 37.
Kh2 {[%clk 00:00:16]} {[%emt 00:00:01]} Qb1 {[%clk 00:00:22]} {[%emt 00:00:12]}
38. Rb8 {[%clk 00:00:11]} {[%emt 00:00:07]} b3 {[%clk 00:00:22]} {[%emt
00:00:02]} 39. Rb4+ {[%clk 00:00:12]} {[%emt 00:00:01]} Ke3 {[%clk 00:00:11]}
{[%emt 00:00:13]} 40. Rxa4 {[%clk 00:00:13]} {[%emt 00:00:01]} Qc2 {[%clk
00:00:11]} {[%emt 00:00:03]} 41. Ra3 {[%clk 00:00:08]} {[%emt 00:00:07]} Kf2
{[%clk 00:00:10]} {[%emt 00:00:03]} 42. Ra1 {[%clk 00:00:05]} {[%emt 00:00:04]}
Qe2 {[%clk 00:00:10]} {[%emt 00:00:02]} 43. Bd4+ {[%emt 00:00:12]} 1-0

[Event "MČR v bleskovém šachu družstev 2019"]
[Site "Teplice, Czech Republic"]
[Date "2019.09.14"]
[Round "14.18"]
[White "Hadraba, Vladimir"]
[Black "Hacha, Ales"]
[Result "1/2-1/2"]
[TimeControl "3 mim. + 2 s"]
[WhiteFideId "301663"]
[WhiteElo "2095"]
[BlackElo "2065"]

1. e4 {[%clk 00:03:03]} e5 {[%clk 00:03:03]} {[%emt 00:00:02]} 2. Nf3 {[%clk
00:03:04]} Nc6 {[%clk 00:03:04]} 3. Bb5 {[%clk 00:03:05]} a6 {[%emt 00:00:02]}
4. Ba4 Nf6 {[%clk 00:03:06]} {[%emt 00:00:02]} 5. O-O {[%clk 00:03:08]} Be7
{[%clk 00:03:07]} 6. Re1 {[%clk 00:03:09]} {[%emt 00:00:01]} b5 {[%clk
00:03:08]} {[%emt 00:00:02]} 7. Bb3 {[%clk 00:03:10]} d6 {[%clk 00:03:09]}
{[%emt 00:00:01]} 8. c3 {[%clk 00:03:11]} O-O {[%emt 00:00:03]} 9. h3 {[%emt
00:00:01]} Na5 {[%clk 00:03:09]} {[%emt 00:00:01]} 10. Bc2 {[%clk 00:03:14]} c5
{[%clk 00:03:10]} {[%emt 00:00:02]} 11. d4 {[%clk 00:03:14]} {[%emt 00:00:02]}
Qc7 {[%clk 00:03:11]} 12. Nbd2 {[%clk 00:03:11]} {[%emt 00:00:06]} Nc6 {[%clk
00:03:12]} {[%emt 00:00:01]} 13. d5 {[%clk 00:03:05]} {[%emt 00:00:08]} Nd8
{[%clk 00:03:13]} 14. Nf1 {[%clk 00:03:06]} Ne8 {[%clk 00:03:13]} {[%emt
00:00:03]} 15. Ng3 {[%clk 00:03:04]} {[%emt 00:00:04]} g6 {[%clk 00:03:14]} 16.
Bh6 {[%clk 00:03:01]} {[%emt 00:00:05]} Ng7 {[%clk 00:03:15]} 17. Qd2 {[%clk
00:02:52]} {[%emt 00:00:11]} f6 {[%clk 00:03:15]} {[%emt 00:00:03]} 18. a4
{[%clk 00:02:46]} {[%emt 00:00:07]} Rb8 {[%clk 00:03:16]} 19. axb5 {[%clk
00:02:40]} {[%emt 00:00:09]} axb5 {[%clk 00:03:17]} {[%emt 00:00:01]} 20. b4
{[%clk 00:02:36]} {[%emt 00:00:07]} c4 {[%clk 00:03:18]} {[%emt 00:00:01]} 21.
Ra5 {[%clk 00:02:19]} {[%emt 00:00:19]} Nf7 {[%clk 00:03:14]} {[%emt 00:00:05]}
22. Be3 {[%clk 00:02:19]} {[%emt 00:00:02]} f5 {[%clk 00:03:04]} {[%emt
00:00:13]} 23. exf5 {[%clk 00:01:23]} {[%emt 00:00:58]} gxf5 {[%clk 00:03:04]}
{[%emt 00:00:01]} 24. Ba7 {[%clk 00:00:59]} {[%emt 00:00:27]} Rb7 {[%clk
00:02:54]} {[%emt 00:00:11]} 25. Rea1 {[%clk 00:00:59]} {[%emt 00:00:03]} f4
{[%clk 00:02:43]} {[%emt 00:00:13]} 26. Ne4 {[%clk 00:00:54]} {[%emt 00:00:07]}
Bf5 {[%clk 00:02:42]} {[%emt 00:00:03]} 27. Qe2 {[%clk 00:00:42]} {[%emt
00:00:14]} Qd7 {[%clk 00:02:19]} {[%emt 00:00:25]} 28. Ra6 {[%clk 00:00:36]}
{[%emt 00:00:07]} Ra8 {[%clk 00:02:05]} {[%emt 00:00:16]} 29. Bb6 {[%clk
00:00:32]} {[%emt 00:00:07]} Rxa6 {[%clk 00:02:03]} {[%emt 00:00:04]} 30. Rxa6
{[%clk 00:00:32]} {[%emt 00:00:01]} h6 {[%clk 00:01:54]} {[%emt 00:00:12]} 31.
Ra8+ {[%clk 00:00:29]} {[%emt 00:00:05]} Kh7 {[%clk 00:01:55]} 32. Ba5 {[%clk
00:00:26]} {[%emt 00:00:05]} Ra7 {[%clk 00:01:46]} {[%emt 00:00:12]} 33. Rxa7
{[%clk 00:00:26]} {[%emt 00:00:02]} Qxa7 {[%clk 00:01:47]} 34. Nfd2 {[%clk
00:00:17]} {[%emt 00:00:12]} Qd7 {[%clk 00:01:40]} {[%emt 00:00:09]} 35. Qf3
{[%clk 00:00:15]} {[%emt 00:00:04]} Ng5 {[%clk 00:01:37]} {[%emt 00:00:05]} 36.
Nxg5+ {[%clk 00:00:13]} {[%emt 00:00:03]} hxg5 {[%clk 00:01:38]} 37. Bxf5+
{[%clk 00:00:13]} {[%emt 00:00:03]} Qxf5 {[%clk 00:01:39]} {[%emt 00:00:02]} 38.
Qe4 {[%clk 00:00:13]} {[%emt 00:00:01]} Kg6 {[%clk 00:01:33]} {[%emt 00:00:08]}
39. f3 {[%clk 00:00:14]} {[%emt 00:00:02]} Ne8 {[%emt 00:00:33]} 1/2-1/2